fUSD/lending_fUSD_20240121
["ID","MTS","AMOUNT","RATE_DAILY","PERIOD"]
[312380293,1705847438368,-1137.26948524,0.00019943,2]
[312380294,1705847438378,-2321.21340696,0.00019943,2]
[312380295,1705847438387,-529.64571731,0.00019943,2]
[312380296,1705847438398,-364.29623215,0.00019944,2]
[312380297,1705847438409,-203.41344144,0.00019944,2]
[312380298,1705847438420,-917.48390639,0.00019945,2]
[312380299,1705847438431,-310.36952965,0.00019945,2]
[312380300,1705847438441,-10562.38775539,0.00019945,2]
[312380301,1705847438451,-941.1417335,0.00019945,2]
[312380302,1705847438461,-2308.30502302,0.00019946,2]
[312380303,1705847438471,-521.09835095,0.00019946,2]
[312380304,1705847438480,-150.0,0.00019946,2]
[312380305,1705847438490,-155.0,0.00019946,2]
[312380306,1705847438500,-2140.68077352,0.00019946,2]
[312380307,1705847438510,-501.74130467,0.00019946,2]
[312380308,1705847438519,-3046.05706704,0.00019947,2]
[312380309,1705847438530,-253.12049948,0.00019947,2]
[312380310,1705847438540,-218.1035916,0.00019947,2]
[312380311,1705847438550,-286.83969143,0.00019947,2]
[312380312,1705847438559,-2948.79719052,0.00019947,2]
[312380313,1705847438568,-209.44254861,0.00019948,2]
[312380314,1705847438580,-314.47481954,0.00019948,2]
[312380315,1705847438590,-242.63639215,0.00019948,2]
[312380316,1705847438599,-4249.6035919,0.00019949,2]
[312380317,1705847438609,-2146.87991109,0.0001995,2]
[312380318,1705847438618,-263.5764321,0.0001995,2]
[312380319,1705847438629,-1813.06536836,0.0001995,2]
[312380320,1705847438638,-705.41846479,0.000202,2]
[312380321,1705847438647,-23880.0,0.00020342,2]
[312380323,1705847438657,-1494.22,0.00020365,2]
[312380325,1705847438666,-1245.56,0.00020367,2]
[312380327,1705847438676,-653.27,0.00020483,2]
[312380329,1705847438686,-200.0,0.00020595,2]
[312380331,1705847438695,-687.18,0.00020602,2]
[312380333,1705847438705,-262.71238706,0.00020608,2]
[312380335,1705847438715,-158.89,0.00020622,2]
[312380337,1705847438724,-2000.0,0.00020666,2]
[312380339,1705847438734,-312.53,0.00020666,2]
[312380341,1705847438743,-853.22,0.00020689,2]
[312380343,1705847438752,-171.97,0.00020696,2]
[312380345,1705847438761,-183.28063339,0.000207,2]
[312380347,1705847438770,-174.38,0.00020719,2]
[312380349,1705847438780,-200.0,0.00020727,2]
[312380351,1705847438789,-178.19,0.00020732,2]
[312380353,1705847438798,-241.99,0.00020736,2]
[312380355,1705847438807,-200.95,0.00020786,2]
[312380357,1705847438816,-178.19,0.00020789,2]
[312380359,1705847438826,-686.1,0.00020824,2]
[312380361,1705847438835,-200.0,0.00020836,2]
[312380363,1705847438844,-178.19,0.00020846,2]
[312380365,1705847438854,-1808.72,0.00020863,2]
[312380367,1705847438863,-157.3219595,0.00020872,2]
[312380369,1705847438872,-178.19,0.00020903,2]
[312380371,1705847438882,-178.19,0.00020959,2]
[312380373,1705847438891,-178.19,0.00021016,2]
[312380375,1705847438901,-178.19,0.00021073,2]
[312380377,1705847438910,-151.53,0.00021077,2]
[312380379,1705847438920,-380.92,0.00021082,2]
[312380381,1705847438929,-13074.24,0.00021101,2]
[312380383,1705847438939,-151.53,0.00021119,2]
[312380385,1705847438948,-178.19,0.0002113,2]
[312380387,1705847438957,-151.53,0.00021161,2]
[312380389,1705847438966,-178.19,0.00021187,2]
[312380391,1705847438975,-158.42,0.00021197,2]
[312380393,1705847438984,-151.53,0.00021203,2]
[312380395,1705847438993,-178.19,0.00021244,2]
[312380397,1705847439002,-151.53,0.00021245,2]
[312380399,1705847439011,-151.53,0.00021287,2]
[312380401,1705847439020,-178.19,0.000213,2]
[312380403,1705847439030,-499.99,0.00021321,2]
[312380405,1705847439039,-151.53,0.00021329,2]
[312380407,1705847439048,-319.62,0.00021333,2]
[312380409,1705847439058,-178.19,0.00021357,2]
[312380411,1705847439067,-270.31,0.0002137,2]
[312380413,1705847439076,-151.53,0.00021372,2]
[312380415,1705847439086,-200.01,0.0002141,2]
[312380417,1705847439095,-151.53,0.00021414,2]
[312380419,1705847439104,-178.19,0.00021414,2]
[312380421,1705847439114,-9999.99,0.00021435,2]
[312380423,1705847439123,-767.05,0.00021436,2]
[312380425,1705847439132,-466.24,0.00021436,2]
[312380427,1705847439141,-6570.28,0.00021436,2]
[312380429,1705847439150,-151.53,0.00021456,2]
[312380431,1705847439159,-178.19,0.00021471,2]
[312380433,1705847439169,-151.53,0.00021498,2]
[312380435,1705847439178,-178.19,0.00021528,2]
[312380437,1705847439186,-178.19,0.00021585,2]
[312380439,1705847439196,-178.19,0.00021642,2]
[312380441,1705847439205,-169.63,0.00021644,2]
[312380443,1705847439214,-178.19,0.00021698,2]
[312380445,1705847439224,-157.35,0.0002171,2]
[312380447,1705847439233,-170.13,0.00021739,2]
[312380449,1705847439242,-159.08,0.00021746,2]
[312380451,1705847439252,-178.19,0.00021755,2]
[312380477,1705847439487,-157.35,0.00021764,2]
[312380479,1705847439496,-178.19,0.00021812,2]
[312380481,1705847439506,-157.35,0.00021818,2]
[312380483,1705847439514,-235.6930786,0.00021843,2]
[312380485,1705847439523,-157.35,0.00021873,2]
[312380488,1705847439533,-157.3219595,0.00021886,2]
[312380490,1705847439542,-250.0,0.000219,2]
[312380492,1705847439552,-158.89,0.00021915,2]
[312380493,1705847439561,-250.0,0.00021918,2]
[312380496,1705847439571,-11900.0,0.00021918,2]
[312380497,1705847439581,-157.35,0.00021927,2]
[312380500,1705847439590,-210.0,0.00021941,2]
[312380502,1705847439600,-205.0,0.00021956,2]
[312380504,1705847439610,-157.35,0.00021981,2]
[312380506,1705847439619,-150.0,0.00021999,2]
[312380508,1705847439628,-1250.0,0.00022,3]
[312380510,1705847439637,-157.35,0.00022035,2]
[312380512,1705847439646,-1390.09672447,0.00022078,2]
[312380513,1705847439655,-623.99004197,0.00022079,2]
[312380515,1705847439665,-157.35,0.0002209,2]
[312380518,1705847439674,-165.68,0.00022105,2]
[312380520,1705847439683,-653.27,0.00022127,2]
[312380521,1705847439692,-157.35,0.00022144,2]
[312380524,1705847439702,-159.12,0.00022382,2]
[312380526,1705847439712,-159.08,0.00022427,2]
[312380528,1705847439722,-169.63,0.00022445,2]
[312380530,1705847439732,-180.0,0.00022603,2]
[312380532,1705847439741,-1941.4081,0.00022667,2]
[312380534,1705847439751,-1377.64221488,0.0002274,3]
[312380536,1705847439762,-10000.0,0.0002274,2]
[312380538,1705847439771,-20910.32915467,0.00022767,2]
[312380539,1705847439780,-353.72680467,0.00022767,2]
[312380540,1705847439790,-226.70008479,0.00022769,4]
[312380541,1705847439798,-213.75031147,0.00022895,2]
[312380542,1705847439808,-209.66429937,0.00022895,2]
[312380543,1705847439818,-762.63989464,0.00022895,2]
[312380544,1705847439827,-405.76774804,0.00022898,2]
[312380545,1705847439837,-1666.5964264,0.00022898,2]
[312380546,1705847439846,-301.91289594,0.00022898,2]
[312380547,1705847439855,-155.80487351,0.00022898,2]
[312380548,1705847439865,-629.04989027,0.00022898,2]
[312380549,1705847439875,-231.84627581,0.00022898,2]
[312380550,1705847439884,-236.25268828,0.00022898,2]
[312380551,1705847439894,-155.35648805,0.00022898,2]
[312380552,1705847439904,-5000.0,0.00022899,2]
[312380554,1705847439912,-244.13617964,0.00022899,2]
[312380556,1705847439921,-5143.11655642,0.00022899,2]
[312380558,1705847439931,-5143.11655633,0.00022899,2]
[312380560,1705847439940,-5143.11655633,0.00022899,2]
[312380562,1705847439949,-5143.11655633,0.00022899,2]
[312380564,1705847439961,-5143.11655633,0.00022899,2]
[312380567,1705847439970,-5143.11655633,0.00022899,2]
[312380569,1705847439979,-5143.11655633,0.000229,2]
[312380572,1705847439989,-5143.11655633,0.000229,2]
[312380575,1705847439999,-5143.11655633,0.000229,2]
[312380578,1705847440008,-5143.11655633,0.000229,2]
[312380581,1705847440018,-5143.11655633,0.000229,2]
[312380583,1705847440027,-1000.0,0.000229,2]
[312380585,1705847440036,-5143.11655633,0.000229,2]
[312380587,1705847440045,-9499.1895,0.000229,2]
[312380589,1705847440054,-157.3219595,0.000229,2]
[312380591,1705847440063,-535.97963193,0.000229,2]
[312380593,1705847440072,-169.6775118,0.000229,2]
[312380595,1705847440081,-5419.34635403,0.000229,2]
[312380597,1705847440090,-1597.50068148,0.000229,2]
[312380599,1705847440099,-184.67736102,0.000229,2]
[312380601,1705847440108,-215.6029906,0.00022974,2]
[312380603,1705847440117,-419.50613923,0.00022986,2]
[312380605,1705847440126,-720.91752398,0.00022993,2]
[312380607,1705847440135,-1203.42619613,0.00022993,2]
[312380609,1705847440144,-1178.56113027,0.00022993,2]
[312380611,1705847440153,-215.9504251,0.00022993,2]
[312380613,1705847440162,-229.23220189,0.00022993,2]
[312380615,1705847440171,-4583.12494657,0.00022993,2]
[312380617,1705847440181,-275.3318651,0.00022993,2]
[312380619,1705847440190,-2781.06469987,0.00022993,2]
[312380621,1705847440199,-330.0,0.00022993,2]
[312380623,1705847440209,-155.0,0.00022993,2]
[312380625,1705847440217,-295.57218502,0.00022993,2]
[312380627,1705847440226,-4273.6526089,0.00022993,2]
[312380629,1705847440235,-155.0,0.00022993,2]
[312380631,1705847440244,-5444.8024805,0.00022993,2]
[312380633,1705847440253,-654.00465892,0.00022993,2]
[312380635,1705847440263,-155.0,0.00022993,2]
[312380637,1705847440272,-155.0,0.00022994,2]
[312380639,1705847440281,-160.6463697,0.00022994,2]
[312380641,1705847440291,-1043.00595454,0.00022994,2]
[312380643,1705847440300,-1256.01969501,0.00022994,2]
[312380645,1705847440309,-581.89521876,0.00022995,2]
[312380647,1705847440319,-3859.00309907,0.00022995,2]
[312380649,1705847440332,-542.84106609,0.00022995,2]
[312380651,1705847440341,-1235.03864524,0.00022995,2]
[312380653,1705847440350,-199.21523977,0.00022995,2]
[312380655,1705847440359,-245.75882796,0.00022995,2]
[312380657,1705847440369,-155.59687258,0.00022995,2]
[312380659,1705847440378,-42997.05845496,0.00022995,2]
[312380661,1705847440387,-608597.92272493,0.00022995,2]
[312380664,1705847440397,-397.70595605,0.00022995,2]
[312380666,1705847440408,-1275.70704827,0.00022995,2]
[312380667,1705847440418,-371.15962209,0.00022995,2]
[312380670,1705847440428,-156.04017756,0.00022995,2]
[312380671,1705847440437,-260.15368191,0.00022995,2]
[312380674,1705847440447,-233.1694677,0.00022995,2]
[312380676,1705847440456,-196.72385676,0.00022995,2]
[312380678,1705847440465,-158.77601689,0.00022995,2]
[312380680,1705847440474,-177.82092224,0.00022996,2]
[312380682,1705847440483,-202.6537974,0.00022996,2]
[312380684,1705847440495,-24327.1934238,0.00022996,2]
[312380686,1705847440504,-155.45608335,0.00022996,2]
[312380688,1705847440513,-2619.74608901,0.00022996,2]
[312380690,1705847440522,-384.58030079,0.00022996,2]
[312380692,1705847440531,-490.14166525,0.00022996,2]
[312380694,1705847440541,-162.18930337,0.00022996,2]
[312380696,1705847440550,-1143.78063177,0.00022997,2]
[312380698,1705847440559,-503.84036235,0.00022997,2]
[312380700,1705847440569,-523.73846155,0.00022997,2]
[312380702,1705847440578,-3144.18672444,0.00022997,2]
[312380704,1705847440588,-1071.00732196,0.00022997,2]
[312380706,1705847440597,-7785.67500435,0.00022997,2]
[312380708,1705847440607,-4350.83358686,0.00022997,2]
[312380710,1705847440616,-3328.83599475,0.00022997,2]
[312380713,1705847440625,-228.6818623,0.00022997,2]
[312380716,1705847440634,-299.86105292,0.00022997,2]
[312380718,1705847440643,-265.49770567,0.00022997,2]
[312380720,1705847440652,-230.0,0.00022997,2]
[312380722,1705847440661,-1709.04497142,0.00022997,2]
[312380725,1705847440670,-523.73781275,0.00022997,2]
[312380726,1705847440680,-3624.77589109,0.00022997,2]
[312380729,1705847440689,-1416.70167439,0.00022997,2]
[312380731,1705847440698,-155.53370047,0.00022997,2]
[312380732,1705847440708,-249.62635525,0.00022997,2]
[312380734,1705847440717,-279.29838997,0.00022997,2]
[312380736,1705847440727,-386.91722363,0.00022997,2]
[312380739,1705847440737,-155.0,0.00022997,2]
[312380741,1705847440746,-155.91041231,0.00022997,2]
[312380742,1705847440755,-324.93079599,0.00022997,2]
[312380744,1705847440765,-171.86365915,0.00022997,2]
[312380746,1705847440775,-155.18158336,0.00022997,2]
[312380748,1705847440784,-544.07612989,0.00022997,2]
[312380750,1705847440793,-584.0,0.00022998,2]
[312380753,1705847440803,-1041.52724477,0.00022998,2]
[312380755,1705847440813,-500.0,0.00022998,2]
[312380757,1705847440823,-2902.60645691,0.00022999,2]
[312380759,1705847440832,-493407.03934199,0.00022999,2]
[312380761,1705847440841,-401.60144488,0.00023,2]
[312380762,1705847440850,-875295.76729221,0.00023,3]
[312380822,1705847441399,-343.36644218,0.00023,3]
[312380824,1705847441411,-846.249995,0.00023,3]
[312380827,1705847441422,-1120.6283,0.00023,3]
[312380829,1705847441437,-1267.65875993,0.00023,3]
[312380833,1705847441468,-804.528,0.00023,3]
[312380836,1705847441479,-389.2220593,0.00023,3]
[312380838,1705847441493,-358.01197968,0.00023,3]
[312380842,1705847441520,-1233.86748,0.00023,3]
[312380844,1705847441531,-261.99999998,0.00023,3]
[312380847,1705847441543,-3877.35831646,0.00023,3]
[312380849,1705847441555,-671459.54256778,0.00023,3]
[312380851,1705847441563,-1600345.45556086,0.00023,2]
[312380853,1705847441572,-2680106.96378704,0.00023,2]
[312380855,1705847441584,-368232.93041353,0.00023,2]
[312380857,1705847441596,-354584.75924408,0.00023,2]
[312380861,1705847441620,-31428.90840121,0.00023,2]
[312380863,1705847441631,-8355.461751,0.00023,2]
[312380866,1705847441643,-37597.94918362,0.00023,2]
[312380869,1705847441662,-27592.38459784,0.00023,2]
[312380955,1705847442528,-377.1378699,0.00019941,2]
[312380957,1705847442538,-1072.8621301,0.00019941,2]
[312380960,1705847442554,-3983.9,0.00019941,2]
[312380964,1705847442583,-698.78108098,0.00019941,2]
[312380977,1705847442704,-278.29128472,0.00019941,2]
[312380980,1705847442716,-2286.3541701,0.00019941,2]
[312381106,1705847443740,-2048.63059029,0.00019941,2]
[312381124,1705847443897,-2955.45195453,0.00019941,2]
[312381126,1705847443910,-20453.02541629,0.00019941,2]
[312381128,1705847443921,-27067.1565189,0.00023,2]
[312381131,1705847443937,-576.10438552,0.00023,2]
[312381179,1705847446327,-41385.75530702,0.00023,2]
[312381180,1705847446485,-71.4279678,0.00023,2]
[312381181,1705847446497,-406274.24598426,0.00023,2]
[312381182,1705847446508,-3702.10422888,0.00023,2]
[312381183,1705847446519,-296.09272813,0.00023,2]
[312381184,1705847446535,-42670.0,0.00023,2]
[312381185,1705847446546,-209700.00000009,0.00023,2]
[312381186,1705847446564,-4257.792586,0.00023,2]
[312381187,1705847446575,-1017.22330267,0.00023,2]
[312381188,1705847446587,-978.64808177,0.00023,2]
[312381189,1705847446599,-361.548725,0.00023,2]
[312381209,1705847563995,366.75,0.00019462,2]
[312381210,1705847667032,209.43392452,0.00019893,2]
[312381218,1705847783121,2254.90186685,0.00019893,2]
[312381227,1705847939275,1025.2617308,0.00019893,2]
[312381233,1705847987868,372.33,0.00018253,2]
[312381236,1705848157028,150.0,0.0003629,30]
[312381237,1705848166809,150.0,0.0003629,31]
[312381238,1705848171496,-1953.94293296,0.00019917,2]
[312381239,1705848173210,150.0,0.0003629,32]
[312381240,1705848179835,150.0,0.0003629,33]
[312381241,1705848184970,150.0,0.0003629,34]
[312381242,1705848197997,250.0,0.0003629,35]
[312381244,1705848223207,252.33660574,0.00019671,2]
[312381245,1705848250220,-420.16374774,0.00019907,2]
[312381246,1705848272314,409.31,0.0003629,30]
[312381247,1705848300216,253.12049948,0.000199,2]
[312381248,1705848302177,917.48390639,0.000199,2]
[312381249,1705848302264,292.7739797,0.000199,2]
[312381250,1705848309418,-84.3638902,0.000199,2]
[312381251,1705848309444,-289.13231179,0.000199,2]
[312381252,1705848309470,-150.0,0.000199,2]
[312381253,1705848309497,-218.1035916,0.000199,2]
[312381254,1705848309522,-4249.6035919,0.000199,2]
[312381255,1705848309548,-4629.1414136,0.000199,2]
[312381256,1705848309861,-150.0,0.00019863,2]
[312381257,1705848309871,-609.31040182,0.00019901,2]
[312381261,1705848407960,353.71,0.00017711,2]
[312381266,1705848591266,-941.1417335,0.0001959,2]
[312381267,1705848591290,-159.96274036,0.0001959,2]
[312381268,1705848591313,-2308.30502302,0.0001959,2]
[312381269,1705848591336,-310.36952965,0.00019591,2]
[312381270,1705848591359,-314.47481954,0.00019591,2]
[312381271,1705848591381,-364.29623215,0.00019591,2]
[312381272,1705848591404,-2140.68077352,0.00019591,2]
[312381273,1705848591428,-1041.92703667,0.00019592,2]
[312381274,1705848591451,-1769.06243771,0.00019592,2]
[312381275,1705848591474,-1137.26948524,0.00019592,2]
[312381276,1705848591497,-5218.38418036,0.00019592,2]
[312381277,1705848591519,-242.63639215,0.00019592,2]
[312381278,1705848591543,-501.74130467,0.00019593,2]
[312381279,1705848591566,-155.0,0.00019593,2]
[312381280,1705848591589,-289.13231179,0.00019593,2]
[312381281,1705848591612,-203.41344144,0.00019594,2]
[312381282,1705848591635,-2321.21340696,0.00019594,2]
[312381283,1705848591657,-209.44254861,0.00019595,2]
[312381284,1705848591681,-286.83969143,0.00019595,2]
[312381285,1705848591704,-10562.38775539,0.00019595,2]
[312381286,1705848591730,-4639.05259022,0.00019596,2]
[312381287,1705848591754,-529.64571731,0.00019596,2]
[312381288,1705848591788,-1813.06536836,0.00019596,2]
[312381289,1705848591812,-295.67539193,0.00019596,2]
[312381290,1705848591838,-232.15401886,0.00019597,2]
[312381291,1705848591863,-2948.79719052,0.00019597,2]
[312381292,1705848591887,-155.0,0.00019597,2]
[312381293,1705848591913,-33777.29662701,0.00019597,2]
[312381294,1705848591938,-563.0,0.00019598,2]
[312381295,1705848591963,-473.54978766,0.00019598,2]
[312381296,1705848591987,-499.99,0.00019598,2]
[312381297,1705848592012,-330.83,0.000196,2]
[312381298,1705848592036,-200.0,0.000196,2]
[312381299,1705848592060,-439.26246397,0.00019615,2]
[312381325,1705848631520,-164.90047162,0.0001959,2]
[312381326,1705848631530,-2146.87991109,0.0001959,2]
[312381327,1705848631539,-7109.64096656,0.00019615,2]
[312381328,1705848631550,-16341.09656947,0.00019615,2]
[312381329,1705848631561,-600.0,0.00019615,2]
[312381330,1705848631570,-200.0,0.00019615,2]
[312381331,1705848631579,-401.32,0.00019644,2]
[312381332,1705848631589,-1469.75,0.00019688,2]
[312381333,1705848631598,-268.0,0.00019696,2]
[312381334,1705848631607,-150.0,0.00019696,2]
[312381335,1705848631616,-150.0,0.00019696,2]
[312381336,1705848631626,-1000.0,0.00019701,2]
[312381337,1705848631636,-150.99,0.00019784,2]
[312381338,1705848631645,-916.95,0.00019786,2]
[312381339,1705848631655,-243.84092628,0.00019797,2]
[312381340,1705848631664,-1346.15,0.00019797,2]
[312381341,1705848631673,-152.38,0.00019838,2]
[312381342,1705848631683,-254.64557937,0.000199,2]
[312381343,1705848631693,-352.43306912,0.000199,2]
[312381344,1705848631702,-3409.23763727,0.000199,2]
[312381345,1705848631712,-508.92916098,0.000199,2]
[312381346,1705848631723,-387.4097807,0.000199,2]
[312381347,1705848631734,-217.60549176,0.000199,2]
[312381348,1705848631744,-173.84,0.00019913,2]
[312381349,1705848631754,-152.38,0.00019918,2]
[312381350,1705848631765,-200.0,0.00019933,2]
[312381351,1705848631774,-419.39,0.00019935,2]
[312381352,1705848631784,-208.99,0.00019935,2]
[312381353,1705848631793,-500.0,0.00019938,2]
[312381354,1705848631803,-243.84092624,0.0001996,2]
[312381355,1705848631813,-2974.57,0.0001997,2]
[312381356,1705848631823,-4077.69,0.00019972,2]
[312381357,1705848631833,-353.71,0.00019975,2]
[312381358,1705848631843,-152.38,0.00019997,2]
[312381359,1705848631853,-1098.64522824,0.0002,2]
[312381360,1705848631863,-856.49,0.00020009,2]
[312381361,1705848631873,-250.0,0.00020063,2]
[312381362,1705848631883,-152.38,0.00020076,2]
[312381363,1705848631893,-1034.49,0.00020082,2]
[312381364,1705848631903,-243.84092624,0.00020124,2]
[312381365,1705848631912,-152.38,0.00020156,2]
[312381366,1705848631922,-157.24,0.0002016,2]
[312381367,1705848631932,-1362.48,0.00020183,2]
[312381368,1705848631942,-157.45,0.00020191,2]
[312381369,1705848631952,-152.38,0.00020235,2]
[312381370,1705848631961,-243.84092624,0.00020287,2]
[312381371,1705848631971,-158.99,0.00020349,2]
[312381372,1705848631981,-158.99,0.0002037,2]
[312381373,1705848631992,-373.80187657,0.00020379,2]
[312381374,1705848632001,-158.99,0.00020392,2]
[312381375,1705848632011,-158.99,0.00020413,2]
[312381376,1705848632021,-158.99,0.00020434,2]
[312381377,1705848632030,-243.84092624,0.0002045,2]
[312381378,1705848632040,-158.99,0.00020456,2]
[312381379,1705848632049,-158.99,0.00020477,2]
[312381380,1705848632059,-158.99,0.00020499,2]
[312381381,1705848632069,-157.24,0.0002051,2]
[312381382,1705848632078,-158.99,0.0002052,2]
[312381383,1705848632087,-158.99,0.00020542,2]
[312381384,1705848632097,-158.99,0.00020563,2]
[312381385,1705848632106,-158.99,0.00020584,2]
[312381386,1705848632116,-170.13,0.00020591,2]
[312381387,1705848632126,-158.99,0.00020606,2]
[312381388,1705848632135,-243.84092624,0.00020614,2]
[312381389,1705848632144,-158.99,0.00020627,2]
[312381390,1705848632154,-158.99,0.00020649,2]
[312381391,1705848632163,-158.99,0.0002067,2]
[312381392,1705848632173,-158.99,0.00020692,2]
[312381393,1705848632182,-158.99,0.00020713,2]
[312381394,1705848632192,-158.99,0.00020734,2]
[312381395,1705848632201,-158.99,0.00020756,2]
[312381396,1705848632211,-243.84092624,0.00020777,2]
[312381397,1705848632221,-157.78,0.00020778,2]
[312381398,1705848632230,-157.24,0.0002086,2]
[312381399,1705848632240,-243.84092624,0.0002094,2]
[312381400,1705848632249,-185.29,0.00020985,2]
[312381401,1705848632259,-243.84092624,0.00021104,2]
[312381402,1705848632269,-157.24,0.0002121,2]
[312381403,1705848632278,-243.84092624,0.00021267,2]
[312381404,1705848632288,-157.78,0.00021267,2]
[312381405,1705848632298,-418.10988276,0.00021283,2]
[312381406,1705848632308,-1469.75,0.00021331,2]
[312381407,1705848632317,-150.0,0.00021392,2]
[312381408,1705848632327,-243.84092624,0.0002143,2]
[312381409,1705848632337,-205.0,0.00021493,2]
[312381410,1705848632347,-243.84092624,0.00021593,2]
[312381411,1705848632356,-644.41,0.00021644,2]
[312381412,1705848632365,-157.78,0.00021756,2]
[312381413,1705848632374,-243.84092624,0.00021757,2]
[312381414,1705848632384,-14306.08031756,0.000218,2]
[312381415,1705848632393,-230.08829952,0.000219,2]
[312381416,1705848632403,-250.0,0.000219,2]
[312381417,1705848632412,-415.8653,0.00021909,2]
[312381418,1705848632421,-250.0,0.00021918,2]
[312381419,1705848632430,-243.84092624,0.0002192,2]
[312381420,1705848632440,-157.9,0.0002193,2]
[312381421,1705848632449,-1573.73076164,0.00021979,2]
[312381422,1705848632458,-494.02868803,0.0002198,2]
[312381423,1705848632468,-250.0,0.00022,2]
[312381424,1705848632477,-150.56489272,0.00022,2]
[312381425,1705848632486,-1250.0,0.00022,3]
[312381426,1705848632495,-257.08,0.00022,2]
[312381427,1705848632505,-300.0,0.00022,2]
[312381428,1705848632514,-284.62907585,0.00022,2]
[312381429,1705848632523,-447.34,0.00022009,2]
[312381430,1705848632533,-447.34,0.00022033,2]
[312381431,1705848632542,-447.34,0.00022056,2]
[312381432,1705848632552,-4139.17212508,0.00022077,2]
[312381433,1705848633350,-14.30984179,0.00022077,2]
[312381434,1705848633360,-447.34,0.00022079,2]
[312381435,1705848633369,-243.84092624,0.00022083,2]
[312381436,1705848633379,-157.45,0.0002209,2]
[312381437,1705848633388,-227.70232845,0.00022091,2]
[312381438,1705848633398,-169.04015704,0.00022102,2]
[312381439,1705848633407,-447.34,0.00022102,2]
[312381440,1705848633417,-5000.0,0.00022104,2]
[312381441,1705848633426,-6204.5478366,0.00022104,2]
[312381442,1705848633436,-175.74926154,0.00022104,2]
[312381443,1705848633445,-1274.67845149,0.00022104,2]
[312381444,1705848633455,-245.04121359,0.00022106,2]
[312381445,1705848633464,-447.34,0.00022125,2]
[312381446,1705848633473,-280.12500662,0.00022137,2]
[312381447,1705848633483,-447.34,0.00022148,2]
[312381448,1705848633492,-1000.0,0.00022164,2]
[312381449,1705848633501,-447.34,0.00022172,2]
[312381450,1705848633511,-226.69261519,0.00022194,2]
[312381451,1705848633520,-447.34,0.00022195,2]
[312381452,1705848633530,-384.18304943,0.00022201,2]
[312381453,1705848633540,-204.73056274,0.00022202,2]
[312381454,1705848633549,-472.71122559,0.00022202,2]
[312381455,1705848633559,-155.0,0.00022202,2]
[312381456,1705848633568,-501.74130467,0.00022202,2]
[312381457,1705848633578,-296.00779768,0.00022202,2]
[312381458,1705848633587,-1842.56205918,0.00022202,2]
[312381459,1705848633597,-315.79886146,0.00022202,2]
[312381460,1705848633606,-945.65239191,0.00022202,2]
[312381461,1705848633615,-155.0,0.00022202,2]
[312381462,1705848633624,-10562.38775539,0.00022202,2]
[312381463,1705848633634,-5050.8016309,0.00022202,2]
[312381464,1705848633643,-211.03671152,0.00022202,2]
[312381465,1705848633653,-255.77353891,0.00022202,2]
[312381466,1705848633663,-288.41626306,0.00022202,2]
[312381467,1705848633672,-1003.85238894,0.00022202,2]
[312381468,1705848633682,-363.91025431,0.00022202,2]
[312381469,1705848633691,-529.06632308,0.00022202,2]
[312381470,1705848633700,-2096.85148181,0.00022202,2]
[312381471,1705848633709,-368.75672629,0.00022202,2]
[312381472,1705848633719,-2321.21340696,0.00022202,2]
[312381473,1705848633729,-1898.19941599,0.00022202,2]
[312381474,1705848633741,-233.46151727,0.00022202,2]
[312381475,1705848633751,-664.13371612,0.00022202,2]
[312381476,1705848633760,-28543.71401868,0.00022202,2]
[312381477,1705848633769,-928.7995759,0.00022202,2]
[312381478,1705848633779,-1142.23339163,0.00022202,2]
[312381479,1705848633788,-2140.68077352,0.00022202,2]
[312381480,1705848633798,-310.36952965,0.00022202,2]
[312381481,1705848633807,-159.96274036,0.00022202,2]
[312381482,1705848633818,-2780.01074237,0.00022202,2]